fUSD/lending_fUSD_20250923
["ID","MTS","AMOUNT","RATE_DAILY","PERIOD"]
[387252209,1758664439672,-749.44,0.00028767,3]
[387252210,1758664439682,-2954.78,0.00028767,3]
[387252211,1758664439691,-760.02,0.00028767,3]
[387252212,1758664439701,-1527.26,0.00028767,3]
[387252213,1758664439710,-1966.97,0.00028767,3]
[387252214,1758664439720,-1062.51,0.00028767,3]
[387252215,1758664439729,-4579.98,0.00028767,3]
[387252216,1758664439738,-655.81,0.00028767,3]
[387252217,1758664439748,-3361.37,0.00028767,3]
[387252218,1758664439758,-691.42,0.00028767,3]
[387252219,1758664439767,-325.65187196,0.00028767,3]
[387252220,1758664439777,-502.29423377,0.00028767,3]
[387252221,1758664439786,-588.0,0.00028767,3]
[387252222,1758664439793,-2353.38,0.00028767,3]
[387252223,1758664439802,-426.64,0.00028767,3]
[387252224,1758664439811,-891.93,0.00028767,3]
[387252225,1758664439821,-1342.02,0.00028767,3]
[387252226,1758664439830,-836.0,0.00028767,3]
[387252227,1758664439840,-400.0,0.00028767,3]
[387252228,1758664439850,-11455.47,0.00028767,3]
[387252229,1758664439859,-2297.98,0.00028767,3]
[387252230,1758664439869,-557.1,0.00028767,3]
[387252231,1758664439878,-430.82,0.00028767,3]
[387252232,1758664439887,-2148.78,0.00028767,3]
[387252233,1758664439896,-2944.68,0.00028767,3]
[387252234,1758664439906,-1798.01,0.00028767,3]
[387252235,1758664439915,-984.5,0.00028767,3]
[387252236,1758664439924,-400.0,0.00028767,3]
[387252237,1758664439933,-8056.28,0.00028767,3]
[387252238,1758664439943,-400.0,0.00028767,3]
[387252239,1758664439952,-400.0,0.00028767,3]
[387252240,1758664439961,-1120.22,0.00028767,3]
[387252241,1758664439971,-1488.78,0.00028767,3]
[387252242,1758664439980,-2673.31,0.00028767,3]
[387252243,1758664439990,-400.0,0.00028767,3]
[387252244,1758664440000,-403.19,0.00028767,3]
[387252245,1758664440010,-1898.09,0.00028767,3]
[387252246,1758664440020,-1160.52,0.00028767,3]
[387252247,1758664440030,-2196.12,0.00028767,3]
[387252248,1758664440039,-4427.59,0.00028767,3]
[387252249,1758664440049,-736.09,0.00028767,3]
[387252250,1758664440058,-509.42,0.00028767,3]
[387252251,1758664440068,-1729.78,0.00028767,3]
[387252252,1758664440077,-858.26,0.00028767,3]
[387252253,1758664440087,-944.83,0.00028767,3]
[387252254,1758664440097,-2115.52,0.00028767,3]
[387252255,1758664440106,-523.04,0.00028767,3]
[387252256,1758664440116,-1974.89,0.00028767,3]
[387252257,1758664440125,-590.58,0.00028767,3]
[387252258,1758664440135,-2168.16,0.00028767,3]
[387252259,1758664440144,-1946.73,0.00028767,3]
[387252260,1758664440154,-1479.38,0.00028767,3]
[387252261,1758664440163,-543.91,0.00028767,3]
[387252262,1758664440172,-1720.08,0.00028767,3]
[387252263,1758664440181,-570.83,0.00028767,3]
[387252264,1758664440190,-3204.79,0.00028767,3]
[387252265,1758664440200,-1290.76,0.00028767,3]
[387252266,1758664440210,-466.33,0.00028767,3]
[387252267,1758664440219,-727.07,0.00028767,3]
[387252268,1758664440229,-633.05,0.00028767,3]
[387252269,1758664440239,-413.88,0.00028767,3]
[387252270,1758664440248,-1323.54,0.00028767,3]
[387252271,1758664440258,-505.54,0.00028767,3]
[387252272,1758664440268,-654.93,0.00028767,3]
[387252273,1758664440281,-760.67,0.00028767,3]
[387252274,1758664440291,-1733.39,0.00028767,3]
[387252275,1758664440302,-2310.41,0.00028767,3]
[387252276,1758664440311,-562.75,0.00028767,3]
[387252277,1758664440321,-2523.28,0.00028767,3]
[387252278,1758664440331,-1966.27,0.00028767,3]
[387252279,1758664440341,-551.29,0.00028767,3]
[387252280,1758664440351,-1174.67,0.00028767,3]
[387252281,1758664440361,-2604.18,0.00028767,3]
[387252282,1758664440371,-421.49,0.00028767,3]
[387252283,1758664440380,-706.26,0.00028767,3]
[387252284,1758664440390,-400.0,0.00028767,3]
[387252285,1758664440400,-3628.11,0.00028767,3]
[387252286,1758664440410,-565.31,0.00028767,3]
[387252287,1758664440424,-1829.63,0.00028767,3]
[387252288,1758664440434,-2276.88,0.00028767,3]
[387252289,1758664440445,-2647.87,0.00028767,3]
[387252290,1758664440455,-2516.63,0.00028767,3]
[387252291,1758664440465,-1595.55,0.00028767,3]
[387252292,1758664440475,-1399.27,0.00028767,3]
[387252293,1758664440485,-3130.39,0.00028767,3]
[387252294,1758664440496,-4362.99,0.00028767,3]
[387252295,1758664440506,-1323.37,0.00028767,3]
[387252296,1758664440515,-435.62,0.00028767,3]
[387252297,1758664440526,-2164.69,0.00028767,3]
[387252298,1758664440535,-410.88,0.00028767,3]
[387252299,1758664440546,-554.53,0.00028767,3]
[387252300,1758664440556,-2696.65,0.00028767,3]
[387252301,1758664440565,-400.0,0.00028767,3]
[387252302,1758664440575,-400.0,0.00028767,3]
[387252303,1758664440585,-1822.61,0.00028767,3]
[387252304,1758664440594,-2557.76,0.00028767,3]
[387252305,1758664440604,-7563.58,0.00028767,3]
[387252306,1758664440614,-2197.93,0.00028767,3]
[387252307,1758664440623,-2080.13,0.00028767,3]
[387252308,1758664440633,-547.88,0.00028767,3]
[387252309,1758664440643,-2360.32,0.00028767,3]
[387252310,1758664440652,-2254.46,0.00028767,3]
[387252311,1758664440662,-439.37,0.00028767,3]
[387252312,1758664440672,-3272.4,0.00028767,3]
[387252313,1758664440681,-413.35,0.00028767,3]
[387252314,1758664440691,-2668.58,0.00028767,3]
[387252315,1758664440701,-587.39,0.00028767,3]
[387252316,1758664440711,-1439.94,0.00028767,3]
[387252317,1758664440720,-1694.56,0.00028767,3]
[387252318,1758664440730,-400.0,0.00028767,3]
[387252319,1758664440740,-877.79,0.00028767,3]
[387252320,1758664440751,-400.0,0.00028767,3]
[387252321,1758664440760,-1910.92,0.00028767,3]
[387252322,1758664440769,-400.0,0.00028767,3]
[387252323,1758664440780,-2031.07,0.00028767,3]
[387252324,1758664440789,-784.22,0.00028767,3]
[387252325,1758664440799,-791.36,0.00028767,3]
[387252326,1758664440809,-400.0,0.00028767,3]
[387252327,1758664440818,-559.88,0.00028767,3]
[387252328,1758664440828,-976.72,0.00028767,3]
[387252329,1758664440837,-626.61,0.00028767,3]
[387252330,1758664440847,-4896.65,0.00028767,3]
[387252331,1758664440856,-400.0,0.00028767,3]
[387252332,1758664440866,-1175.49,0.00028767,3]
[387252333,1758664440876,-1205.82,0.00028767,3]
[387252334,1758664440885,-2758.07,0.00028767,3]
[387252335,1758664440895,-1169.14,0.00028767,3]
[387252336,1758664440904,-2495.95,0.00028767,3]
[387252337,1758664440913,-1049.38,0.00028767,3]
[387252338,1758664440923,-1595.32,0.00028767,3]
[387252339,1758664440932,-685.44,0.00028767,3]
[387252340,1758664440942,-400.0,0.00028767,3]
[387252341,1758664440951,-1207.96,0.00028767,3]
[387252342,1758664440961,-4079.21,0.00028767,3]
[387252343,1758664440971,-2510.3,0.00028767,3]
[387252344,1758664440980,-1678.52,0.00028767,3]
[387252345,1758664440990,-16706.02,0.00028767,3]
[387252346,1758664440999,-400.0,0.00028767,3]
[387252347,1758664441010,-1890.53,0.00028767,3]
[387252348,1758664441019,-689.28,0.00028767,3]
[387252349,1758664441030,-720.98,0.00028767,3]
[387252350,1758664441039,-4251.49,0.00028767,3]
[387252351,1758664441049,-400.0,0.00028767,3]
[387252352,1758664441059,-2074.52,0.00028767,3]
[387252353,1758664441069,-3330.98,0.00028767,3]
[387252354,1758664441079,-487.18,0.00028767,3]
[387252355,1758664441088,-425.07,0.00028767,3]
[387252356,1758664441098,-605.39,0.00028767,3]
[387252357,1758664441108,-630.04,0.00028767,3]
[387252358,1758664441117,-507.22,0.00028767,3]
[387252359,1758664441126,-1822.56,0.00028767,3]
[387252360,1758664441136,-1189.77,0.00028767,3]
[387252361,1758664441145,-13418.14,0.00028767,3]
[387252362,1758664441154,-908.29,0.00028767,3]
[387252363,1758664441164,-752.17,0.00028767,3]
[387252364,1758664441173,-425.15,0.00028767,3]
[387252365,1758664441183,-2046.35,0.00028767,3]
[387252366,1758664441192,-472.22,0.00028767,3]
[387252367,1758664441201,-501.0,0.00028789,3]
[387252368,1758664441211,-167.2663789,0.0002883,2]
[387252369,1758664441221,-1233.0,0.00028846,2]
[387252370,1758664441230,-434.0,0.00028846,2]
[387252371,1758664441239,-158.8725008,0.00028848,2]
[387252372,1758664441249,-431.83,0.00028909,3]
[387252373,1758664441258,-1219.72,0.00028909,3]
[387252374,1758664441268,-169.0,0.00028997,14]
[387252375,1758664441277,-947.43,0.00028999,3]
[387252376,1758664441287,-3659.3047736,0.00029,30]
[387252377,1758664441297,-2581.0,0.00029,30]
[387252378,1758664441306,-516.32,0.00029,7]
[387252379,1758664441315,-645.25,0.00029,7]
[387252380,1758664441325,-708.36235025,0.00029,7]
[387252381,1758664441335,-227.42,0.00029,7]
[387252382,1758664441344,-781.67,0.00029,7]
[387252383,1758664441354,-549.51,0.00029,7]
[387252384,1758664441363,-150.19,0.00029,2]
[387252385,1758664441372,-364.38,0.00029,7]
[387252386,1758664441382,-174.11856861,0.00029,2]
[387252387,1758664441391,-1068.77,0.00029,7]
[387252388,1758664441400,-500.0,0.00029,2]
[387252389,1758664441410,-403.15,0.00029041,3]
[387252390,1758664441423,-403.15,0.00029041,3]
[387252391,1758664441432,-1219.54,0.00029041,3]
[387252392,1758664441442,-422.15,0.00029041,3]
[387252393,1758664441452,-469.73733966,0.00029041,3]
[387252394,1758664441461,-722.3,0.00029041,3]
[387252395,1758664441473,-425.13,0.00029041,3]
[387252396,1758664441482,-400.0,0.00029041,3]
[387252397,1758664441492,-463.61,0.00029041,3]
[387252398,1758664441502,-400.0,0.00029041,3]
[387252399,1758664441512,-400.81,0.00029041,3]
[387252400,1758664441521,-606.67,0.00029041,3]
[387252401,1758664441531,-558.51,0.00029041,3]
[387252402,1758664441541,-400.0,0.00029041,3]
[387252403,1758664441550,-517.79,0.00029041,3]
[387252404,1758664441560,-410.1,0.00029041,3]
[387252405,1758664441569,-513.24,0.00029041,3]
[387252406,1758664441578,-864.38,0.00029041,3]
[387252407,1758664441587,-400.0,0.00029041,3]
[387252408,1758664441597,-400.0,0.00029041,3]
[387252409,1758664441607,-400.0,0.00029041,3]
[387252410,1758664441616,-400.0,0.00029041,3]
[387252411,1758664441626,-400.0,0.00029041,3]
[387252412,1758664441636,-400.0,0.00029041,3]
[387252413,1758664441646,-499.32,0.00029041,3]
[387252414,1758664441656,-451.42730214,0.00029041,3]
[387252415,1758664441666,-400.0,0.00029041,3]
[387252416,1758664441676,-701.54,0.00029041,3]
[387252417,1758664441685,-570.98,0.00029041,3]
[387252418,1758664441695,-761.54,0.00029041,3]
[387252419,1758664441706,-448.15,0.00029041,3]
[387252420,1758664441716,-550.19,0.00029041,3]
[387252421,1758664441726,-527.27,0.00029041,3]
[387252422,1758664441736,-491.53,0.00029041,3]
[387252423,1758664441745,-400.0,0.00029041,3]
[387252424,1758664441755,-433.43,0.00029041,3]
[387252425,1758664441764,-1431.46,0.00029041,3]
[387252426,1758664441775,-400.0,0.00029041,3]
[387252427,1758664441785,-888.36,0.00029041,3]
[387252428,1758664441794,-400.0,0.00029041,3]
[387252429,1758664441805,-500.78,0.00029041,3]
[387252430,1758664441814,-400.0,0.00029041,3]
[387252431,1758664441824,-400.0,0.00029041,3]
[387252432,1758664441836,-415.37,0.00029041,3]
[387252433,1758664441846,-400.0,0.00029041,3]
[387252434,1758664441856,-851.65,0.00029041,3]
[387252435,1758664441866,-469.22,0.00029041,3]
[387252436,1758664441876,-514.2,0.00029041,3]
[387252437,1758664441885,-696.09,0.00029041,3]
[387252438,1758664441895,-942.3,0.00029041,3]
[387252439,1758664441904,-401.11,0.00029041,3]
[387252440,1758664441914,-426.89,0.00029041,3]
[387252441,1758664441923,-400.0,0.00029041,3]
[387252442,1758664441933,-483.66,0.00029041,3]
[387252443,1758664441942,-700.73,0.00029041,3]
[387252444,1758664441952,-1211.0,0.00029041,3]
[387252445,1758664441961,-432.38,0.00029041,3]
[387252446,1758664442222,-400.0,0.00029041,3]
[387252447,1758664442271,-413.32,0.00029041,3]
[387252448,1758664442281,-600.39,0.00029041,3]
[387252449,1758664442291,-525.79,0.00029041,3]
[387252450,1758664442301,-585.89,0.00029041,3]
[387252451,1758664442311,-400.0,0.00029041,3]
[387252452,1758664442321,-1172.14,0.00029041,3]
[387252453,1758664442331,-1162.35,0.00029041,3]
[387252454,1758664442340,-869.19,0.00029041,3]
[387252455,1758664442350,-655.46,0.00029041,3]
[387252456,1758664442359,-853.3,0.00029041,3]
[387252457,1758664442369,-400.0,0.00029041,3]
[387252458,1758664442378,-400.0,0.00029041,3]
[387252459,1758664442387,-684.3,0.00029041,3]
[387252460,1758664442397,-433.77,0.00029041,3]
[387252461,1758664442407,-400.0,0.00029041,3]
[387252462,1758664442417,-451.05,0.00029041,3]
[387252463,1758664442429,-1034.82,0.00029041,3]
[387252464,1758664442438,-414.11,0.00029041,3]
[387252465,1758664442448,-400.0,0.00029041,3]
[387252466,1758664442459,-568.34,0.00029041,3]
[387252467,1758664442468,-497.27,0.00029041,3]
[387252468,1758664442477,-400.0,0.00029041,3]
[387252469,1758664442487,-483.14,0.00029041,3]
[387252470,1758664442498,-400.0,0.00029041,3]
[387252471,1758664442508,-963.02,0.00029041,3]
[387252472,1758664442517,-442.92,0.00029041,3]
[387252473,1758664442527,-400.0,0.00029041,3]
[387252474,1758664442536,-400.0,0.00029041,3]
[387252475,1758664442546,-419.2,0.00029041,3]
[387252476,1758664442555,-495.44,0.00029041,3]
[387252477,1758664442565,-1113.1,0.00029041,3]
[387252478,1758664442575,-564.87,0.00029041,3]
[387252479,1758664442584,-442.1,0.00029041,3]
[387252480,1758664442594,-612.62,0.00029041,3]
[387252481,1758664442603,-544.44,0.00029041,3]
[387252482,1758664442614,-553.48,0.00029041,3]
[387252483,1758664442623,-811.92,0.00029041,3]
[387252484,1758664442632,-866.52,0.00029041,3]
[387252485,1758664442642,-400.0,0.00029041,3]
[387252486,1758664442652,-1271.99,0.00029041,3]
[387252487,1758664442662,-555.94,0.00029041,3]
[387252488,1758664442672,-516.66,0.00029041,3]
[387252489,1758664442681,-443.34,0.00029041,3]
[387252490,1758664442691,-460.81,0.00029041,3]
[387252491,1758664442701,-400.0,0.00029041,3]
[387252492,1758664442710,-502.53,0.00029041,3]
[387252493,1758664442720,-505.37,0.00029041,3]
[387252494,1758664442730,-542.19,0.00029041,3]
[387252495,1758664442740,-688.7,0.00029041,3]
[387252496,1758664442750,-1015.44,0.00029041,3]
[387252497,1758664442759,-1292.63,0.00029041,3]
[387252498,1758664442768,-1611.73,0.00029041,3]
[387252499,1758664442778,-637.7,0.00029041,3]
[387252500,1758664442788,-1000.0,0.00029041,3]
[387252501,1758664442798,-660.83,0.00029041,3]
[387252502,1758664442808,-549.84,0.00029041,3]
[387252503,1758664442817,-1262.83,0.00029041,3]
[387252504,1758664442827,-500.0,0.00029041,2]
[387252505,1758664442837,-400.0,0.00029041,3]
[387252506,1758664442847,-511.14,0.00029041,3]
[387252507,1758664442856,-1072.23,0.00029041,3]
[387252508,1758664442866,-435.66,0.00029041,3]
[387252509,1758664442876,-400.0,0.00029041,3]
[387252510,1758664442886,-446.42,0.00029041,3]
[387252511,1758664442895,-956.24,0.00029041,3]
[387252512,1758664442905,-804.81,0.00029041,3]
[387252513,1758664442915,-493.33,0.00029041,3]
[387252514,1758664442925,-400.0,0.00029041,3]
[387252515,1758664442935,-425.12,0.00029041,3]
[387252516,1758664442945,-400.0,0.00029041,3]
[387252517,1758664442956,-536.14,0.00029041,3]
[387252518,1758664442967,-400.0,0.00029041,3]
[387252519,1758664442976,-1446.35,0.00029041,3]
[387252520,1758664442985,-647.53,0.00029041,3]
[387252521,1758664442995,-712.76,0.00029041,3]
[387252522,1758664443004,-400.0,0.00029041,3]
[387252523,1758664443014,-400.0,0.00029041,3]
[387252524,1758664443024,-742.51,0.00029041,3]
[387252525,1758664443034,-400.0,0.00029041,3]
[387252526,1758664443044,-609.25,0.00029041,3]
[387252527,1758664443053,-1004.12,0.00029041,3]
[387252528,1758664443063,-400.0,0.00029041,3]
[387252529,1758664443072,-1267.73,0.00029041,3]
[387252530,1758664443082,-1089.2,0.00029041,3]
[387252531,1758664443092,-936.94,0.00029041,3]
[387252532,1758664443101,-400.0,0.00029041,3]
[387252533,1758664443111,-400.0,0.00029041,3]
[387252534,1758664443120,-628.73,0.00029041,3]
[387252535,1758664443130,-792.8,0.00029041,3]
[387252536,1758664443140,-718.2,0.00029041,3]
[387252537,1758664443149,-771.65,0.00029041,3]
[387252538,1758664443158,-735.99,0.00029041,3]
[387252539,1758664443168,-724.09,0.00029041,3]
[387252540,1758664443177,-735.82,0.00029041,3]
[387252541,1758664443187,-400.0,0.00029041,3]
[387252542,1758664443196,-724.51,0.00029041,3]
[387252543,1758664443206,-590.38,0.00029041,3]
[387252544,1758664443215,-704.47,0.00029041,3]
[387252545,1758664443226,-597.65,0.00029041,3]
[387252546,1758664443235,-644.02,0.00029041,3]
[387252547,1758664443245,-490.6,0.00029041,3]
[387252548,1758664443255,-544.45,0.00029041,3]
[387252549,1758664443264,-1124.92,0.00029041,3]
[387252550,1758664443274,-400.98,0.00029041,3]
[387252551,1758664443284,-1607.1,0.00029041,3]
[387252552,1758664443294,-643.25,0.00029041,3]
[387252553,1758664443303,-702.26,0.00029041,3]
[387252554,1758664443313,-623.69,0.00029041,3]
[387252555,1758664443323,-400.0,0.00029041,3]
[387252556,1758664443332,-1080.61,0.00029041,3]
[387252557,1758664443341,-422.24,0.00029041,3]
[387252558,1758664443351,-417.7,0.00029041,3]
[387252559,1758664443360,-909.48,0.00029041,3]
[387252560,1758664443370,-400.0,0.00029041,3]
[387252561,1758664443380,-515.95,0.00029041,3]
[387252562,1758664443390,-400.0,0.00029041,3]
[387252563,1758664443399,-419.15,0.00029041,3]
[387252564,1758664443408,-421.32,0.00029041,3]
[387252565,1758664443420,-1535.1,0.00029041,3]
[387252566,1758664443430,-610.62,0.00029041,3]
[387252567,1758664443440,-788.82,0.00029041,3]
[387252568,1758664443450,-501.25,0.00029041,3]
[387252569,1758664443462,-400.0,0.00029041,3]
[387252570,1758664443472,-400.0,0.00029041,3]
[387252571,1758664443482,-400.0,0.00029041,3]
[387252572,1758664443493,-467.58,0.00029041,3]
[387252573,1758664443504,-614.35,0.00029041,3]
[387252574,1758664443515,-387.17,0.00029041,3]
[387252575,1758664443526,-686.69,0.00029041,3]
[387252576,1758664443536,-400.0,0.00029041,3]
[387252577,1758664443547,-1284.73,0.00029041,3]
[387252578,1758664443557,-642.36,0.00029041,3]
[387252579,1758664443568,-400.0,0.00029041,3]
[387252580,1758664443578,-560.54,0.00029041,3]
[387252581,1758664443588,-1073.37,0.00029041,3]
[387252582,1758664443598,-753.1,0.00029041,3]
[387252583,1758664443608,-545.97,0.00029041,3]
[387252584,1758664443618,-400.0,0.00029041,3]
[387252585,1758664443628,-400.0,0.00029041,3]
[387252586,1758664443638,-580.05,0.00029041,3]
[387252587,1758664443648,-1196.06,0.00029041,3]
[387252588,1758664443658,-779.4,0.00029041,3]
[387252589,1758664443668,-1387.31,0.00029041,3]
[387252590,1758664443679,-526.44,0.00029041,3]
[387252591,1758664443689,-914.9,0.00029041,3]
[387252592,1758664443699,-751.05,0.00029041,3]
[387252593,1758664443709,-400.0,0.00029041,3]
[387252594,1758664443719,-10481.21,0.00029041,3]
[387252595,1758664443729,-585.69,0.00029041,3]
[387252596,1758664443739,-400.0,0.00029041,3]
[387252597,1758664443749,-1075.59,0.00029041,3]
[387252598,1758664443759,-1243.9,0.00029041,3]
[387252599,1758664443769,-2675.56,0.00029041,3]
[387252600,1758664443779,-400.0,0.00029041,3]
[387252601,1758664443789,-603.56,0.00029041,3]
[387252602,1758664443800,-1687.56,0.00029041,3]
[387252603,1758664443809,-613.2,0.00029041,3]
[387252604,1758664443819,-1380.17,0.00029041,3]
[387252605,1758664443829,-400.0,0.00029041,3]
[387252606,1758664443840,-400.0,0.00029041,3]
[387252607,1758664443850,-1984.04,0.00029041,3]
[387252608,1758664443860,-637.31,0.00029041,3]
[387252609,1758664443871,-536.31,0.00029041,3]
[387252610,1758664443881,-1960.16,0.00029041,3]
[387252611,1758664443890,-653.4,0.00029041,3]
[387252612,1758664443902,-400.0,0.00029041,3]
[387252613,1758664443912,-400.0,0.00029041,3]
[387252614,1758664443922,-1811.83,0.00029041,3]
[387252615,1758664443932,-485.31,0.00029041,3]
[387252616,1758664443941,-609.4,0.00029041,3]
[387252617,1758664443951,-1777.36,0.00029041,3]
[387252618,1758664443961,-3596.07,0.00029041,3]
[387252619,1758664443971,-955.0,0.00029041,3]
[387252620,1758664443981,-1530.13,0.00029041,3]
[387252621,1758664443992,-400.0,0.00029041,3]
[387252622,1758664444002,-1065.12,0.00029041,3]
[387252623,1758664444012,-406.89275278,0.00029041,3]
[387252624,1758664444023,-624.46,0.00029041,3]
[387252625,1758664444032,-668.62,0.00029041,3]
[387252626,1758664444042,-400.0,0.00029041,3]
[387252627,1758664444052,-766.88,0.00029041,3]
[387252628,1758664444063,-488.82,0.00029041,3]
[387252629,1758664444073,-1866.98,0.00029041,3]
[387252630,1758664444083,-674.88,0.00029041,3]
[387252631,1758664444093,-507.6,0.00029041,3]
[387252632,1758664444104,-1430.39,0.00029041,3]
[387252633,1758664444114,-2251.93,0.00029041,3]
[387252634,1758664444124,-1005.24,0.00029041,3]
[387252635,1758664444135,-706.55,0.00029041,3]
[387252636,1758664444144,-471.06,0.00029041,3]
[387252637,1758664444155,-440.49,0.00029041,3]
[387252638,1758664444165,-1632.87,0.00029041,3]
[387252639,1758664444175,-2172.06,0.00029041,3]
[387252640,1758664444186,-1577.53,0.00029041,3]
[387252641,1758664444196,-573.43,0.00029041,3]
[387252642,1758664444207,-1762.21,0.00029041,3]
[387252643,1758664444216,-2598.87,0.00029041,3]
[387252644,1758664444226,-2106.48,0.00029041,3]
[387252645,1758664444236,-2137.16,0.00029041,3]
[387252646,1758664444246,-1633.99,0.00029041,3]
[387252647,1758664444256,-665.33,0.00029041,3]
[387252648,1758664444266,-400.0,0.00029041,3]
[387252649,1758664444276,-507.04,0.00029041,3]
[387252650,1758664444287,-652.14,0.00029041,3]
[387252651,1758664444296,-441.78,0.00029041,3]
[387252652,1758664444306,-2095.57,0.00029041,3]
[387252653,1758664444316,-2272.09,0.00029041,3]
[387252654,1758664444326,-2047.84,0.00029041,3]
[387252655,1758664444336,-425.92,0.00029041,3]
[387252656,1758664444346,-782.31,0.00029041,3]
[387252657,1758664444356,-1845.88,0.00029041,3]
[387252658,1758664444366,-1531.58,0.00029041,3]
[387252659,1758664444377,-1188.08,0.00029041,3]
[387252660,1758664444386,-1490.46,0.00029041,3]
[387252661,1758664444396,-2033.65,0.00029041,3]
[387252662,1758664444406,-2177.65,0.00029041,3]
[387252663,1758664444416,-2728.22,0.00029041,3]
[387252664,1758664444433,-448.88325233,0.00029041,3]
[387252665,1758664444443,-1405.11,0.00029041,3]
[387252666,1758664444454,-680.61,0.00029041,3]
[387252667,1758664444464,-1113.08,0.00029041,3]
[387252668,1758664444475,-1415.66,0.00029041,3]
[387252669,1758664444485,-1698.64,0.00029041,3]
[387252670,1758664444496,-1312.62,0.00029041,3]
[387252671,1758664444505,-769.12,0.00029041,3]
[387252672,1758664444515,-1079.65,0.00029041,3]
[387252673,1758664444525,-400.0,0.00029041,3]
[387252674,1758664444535,-916.94,0.00029041,3]
[387252675,1758664444545,-2186.72,0.00029041,3]
[387252676,1758664444555,-546.81,0.00029041,3]
[387252677,1758664444565,-485.45,0.00029041,3]
[387252678,1758664444575,-952.65,0.00029041,3]
[387252679,1758664444585,-643.52,0.00029041,3]
[387252680,1758664444595,-1538.99,0.00029041,3]
[387252681,1758664444605,-495.49692761,0.00029041,3]
[387252682,1758664444615,-400.0,0.00029041,3]
[387252683,1758664444624,-767.66,0.00029041,3]
[387252684,1758664444634,-1510.65,0.00029041,3]
[387252685,1758664444644,-1183.46,0.00029041,3]
[387252686,1758664444654,-1025.71,0.00029041,3]
[387252687,1758664444663,-1292.75,0.00029041,3]
[387252688,1758664444674,-1576.62,0.00029041,3]
[387252689,1758664444683,-589.78,0.00029041,3]
[387252690,1758664444693,-2168.52,0.00029041,3]
[387252691,1758664444703,-1248.87,0.00029041,3]
[387252692,1758664444713,-1438.1,0.00029041,3]
[387252693,1758664444722,-801.34,0.00029041,3]
[387252694,1758664444731,-408.05,0.00029041,3]
[387252695,1758664444741,-400.0,0.00029041,3]
[387252696,1758664444750,-1989.17,0.00029041,3]
[387252697,1758664444759,-1355.06,0.00029041,3]
[387252698,1758664444769,-1742.92,0.00029041,3]
[387252699,1758664444778,-1035.45,0.00029041,3]
[387252700,1758664444787,-466.56,0.00029041,3]
[387252701,1758664444797,-1515.98,0.00029041,3]
[387252702,1758664444806,-1785.83,0.00029041,3]
[387252703,1758664444949,-400.0,0.00029041,3]
[387252704,1758664444960,-835.56,0.00029041,3]
[387252705,1758664444970,-1984.29,0.00029041,3]
[387252706,1758664444980,-1716.89,0.00029041,3]
[387252707,1758664444989,-635.55,0.00029041,3]
[387252708,1758664444999,-786.93,0.00029041,3]